bitfinex/quotes_BTCUSD_20250826
["timestamp","ask_amount","ask_price","bid_price","bid_amount"]
[1756239789085,0.18141437,111480.0,111470.0,0.1564]
[1756239789978,0.18141437,111480.0,111470.0,0.15962]
[1756239790393,0.18141437,111480.0,111470.0,0.00534]
[1756239790610,0.18141437,111480.0,111470.0,0.1564]
[1756239791274,0.18141437,111480.0,111470.0,0.15636]
[1756239791463,0.18141437,111480.0,111470.0,0.00212]
[1756239791677,0.17942047,111470.0,111460.0,0.25169656]
[1756239791978,0.17942047,111470.0,111460.0,0.40805656]
[1756239792938,0.17942047,111470.0,111460.0,0.40905656]
[1756239793407,0.17942047,111470.0,111460.0,0.25481656]
[1756239793627,0.17942047,111470.0,111460.0,0.41005656]
[1756239794176,0.17940437,111480.0,111470.0,0.17942047]
[1756239794399,0.35407533,111490.0,111470.0,0.18476047]
[1756239794631,0.17940437,111480.0,111470.0,0.18476047]
[1756239795914,0.17940437,111480.0,111470.0,0.15424]
[1756239795915,0.18141437,111480.0,111470.0,0.15424]
[1756239796363,0.18141437,111480.0,111470.0,0.15636]
[1756239796572,0.18141437,111480.0,111470.0,0.15958]
[1756239797449,0.18141437,111480.0,111470.0,0.33900047]
[1756239797665,0.17940437,111480.0,111470.0,0.15958]
[1756239799501,0.17940437,111480.0,111470.0,0.33900047]
[1756239799714,0.17940437,111480.0,111470.0,0.37980613]
[1756239800148,0.17940437,111480.0,111470.0,0.33900047]
[1756239803015,0.17940437,111480.0,111470.0,0.33900047]
[1756239806276,0.18781714,111480.0,111470.0,0.33900047]
[1756239806685,0.00841277,111480.0,111470.0,0.33900047]
[1756239806903,0.00841277,111480.0,111470.0,0.83184394]
[1756239807051,0.17967497,111490.0,111480.0,0.17940437]
[1756239807265,0.00870656,111490.0,111480.0,0.18698692]
[1756239807476,0.00870656,111490.0,111480.0,0.18474437]
[1756239808005,0.18809484,111490.0,111480.0,0.18474437]
[1756239808198,0.18909484,111490.0,111480.0,0.18474437]
[1756239808638,0.19009484,111490.0,111480.0,0.18474437]
[1756239809571,0.19207484,111490.0,111480.0,0.00534]
[1756239809788,0.17942047,111470.0,111460.0,0.25169656]
[1756239809999,0.17942047,111470.0,111460.0,0.40797656]
[1756239811005,0.17942047,111470.0,111460.0,0.40897656]
[1756239811208,0.17942047,111470.0,111460.0,0.40997656]
[1756239811840,0.18140047,111470.0,111460.0,0.40997656]
[1756239812129,0.17942047,111470.0,111460.0,0.40997656]
[1756239813191,0.17941893,111480.0,111460.0,0.40997656]
[1756239813408,0.18784026,111480.0,111460.0,0.40675656]
[1756239813626,0.18784026,111480.0,111470.0,0.00322]
[1756239813810,0.18982026,111480.0,111470.0,0.00534]
[1756239814018,0.18982026,111480.0,111470.0,0.1595]
[1756239814971,0.18982026,111480.0,111470.0,0.00534]
[1756239815154,0.18982026,111480.0,111470.0,0.1595]
[1756239816289,0.18982026,111480.0,111470.0,0.00534]
[1756239816510,0.18982026,111480.0,111470.0,0.1595]
[1756239818130,0.18784026,111480.0,111470.0,0.00534]
[1756239818331,0.18784026,111480.0,111470.0,0.1595]
[1756239819048,0.18982026,111480.0,111470.0,0.1595]
[1756239820959,0.18982098,111480.0,111470.0,0.1595]
[1756239821913,0.18784098,111480.0,111470.0,0.1595]
[1756239822129,0.18784098,111480.0,111470.0,0.33892047]
[1756239822345,0.18784098,111480.0,111470.0,0.39766017]
[1756239822768,0.18782642,111480.0,111470.0,0.39766017]
[1756239822976,0.18782642,111480.0,111470.0,0.33892047]
[1756239824293,0.1878263,111480.0,111470.0,0.33892047]
[1756239824918,0.1878263,111480.0,111470.0,0.33888047]
[1756239827473,0.00842193,111480.0,111470.0,0.33888047]
[1756239827751,0.01404175,111490.0,111470.0,0.33888047]
[1756239827940,0.17940437,111480.0,111470.0,0.33566047]
[1756239828506,0.17940437,111480.0,111470.0,0.33883047]
[1756239829399,0.21281548,111490.0,111470.0,0.33883047]
[1756239829623,0.2302645,111490.0,111480.0,0.00317]
[1756239829752,0.2322445,111490.0,111480.0,0.00317]
[1756239830171,0.17940437,111480.0,111470.0,0.33671047]
[1756239830380,0.17940437,111480.0,111470.0,0.33886047]
[1756239836454,0.2302645,111490.0,111470.0,0.33986047]
[1756239836708,0.21281548,111490.0,111480.0,0.00317]
[1756239836909,0.21281548,111490.0,111480.0,0.18472437]
[1756239837328,0.19877373,111490.0,111480.0,0.18472437]
[1756239839772,0.01883819,111490.0,111480.0,0.18472437]
[1756239839982,0.00842215,111490.0,111480.0,0.67756784]
[1756239840202,0.35090391,111510.0,111490.0,0.17937704]
[1756239840418,0.19539199,111500.0,111490.0,0.00317]
[1756239840637,0.2038132,111500.0,111490.0,0.00317]
[1756239840847,0.0160198,111500.0,111490.0,0.18470828]
[1756239841055,0.02246111,111500.0,111490.0,0.18470828]
[1756239841488,0.02250842,111500.0,111490.0,0.18470828]
[1756239841671,0.20188061,111500.0,111490.0,0.18470828]
[1756239841901,0.21222381,111500.0,111490.0,0.33878828]
[1756239842511,0.21322381,111500.0,111490.0,0.33878828]
[1756239843138,0.03385162,111500.0,111490.0,0.33878828]
[1756239843539,0.02543044,111500.0,111490.0,0.33878828]
[1756239843941,0.20580263,111500.0,111490.0,0.33878828]
[1756239844922,0.20778263,111500.0,111490.0,0.00532]
[1756239845135,0.20778263,111500.0,111490.0,0.1594]
[1756239845526,0.20778263,111500.0,111490.0,0.33878828]
[1756239846159,0.20580263,111500.0,111490.0,0.33878828]
[1756239846373,0.20778263,111500.0,111490.0,0.33878828]
[1756239846595,0.02643044,111500.0,111490.0,0.33878828]
[1756239846835,0.01608724,111500.0,111490.0,0.95498982]
[1756239847052,0.01608724,111500.0,111490.0,0.90427647]
[1756239847268,0.00204744,111500.0,111490.0,0.90427647]
[1756239847691,4.744e-05,111500.0,111490.0,0.90427647]
[1756239849731,4.744e-05,111500.0,111490.0,0.411433]
[1756239849951,0.17941963,111500.0,111490.0,0.33874828]
[1756239850299,4.744e-05,111500.0,111490.0,0.33874828]
[1756239850985,4.744e-05,111500.0,111490.0,0.18470828]
[1756239851177,4.744e-05,111500.0,111490.0,0.33874828]
[1756239852800,4.744e-05,111500.0,111490.0,0.43019357]
[1756239853258,4.744e-05,111500.0,111490.0,0.33874828]
[1756239858754,4.744e-05,111500.0,111490.0,0.18470828]
[1756239858962,4.744e-05,111500.0,111490.0,0.33870828]
[1756239859888,4.744e-05,111500.0,111490.0,0.18470828]
[1756239860098,4.744e-05,111500.0,111490.0,0.33870828]
[1756239866311,4.744e-05,111500.0,111490.0,0.3497567]
[1756239866511,4.744e-05,111500.0,111490.0,0.33870828]
[1756239867488,4.744e-05,111500.0,111490.0,0.33970828]
[1756239867695,4.744e-05,111500.0,111490.0,0.34070828]
[1756239868646,4.744e-05,111500.0,111490.0,0.33970828]
[1756239869113,4.744e-05,111500.0,111490.0,0.34070828]
[1756239870004,4.744e-05,111500.0,111490.0,0.43215357]
[1756239870193,4.744e-05,111500.0,111490.0,0.34070828]
[1756239870650,4.744e-05,111500.0,111490.0,0.36768728]
[1756239871291,4.744e-05,111500.0,111490.0,0.93317547]
[1756239873385,4.744e-05,111500.0,111490.0,0.440332]
[1756239873586,4.744e-05,111500.0,111490.0,1.00618271]
[1756239874084,4.744e-05,111500.0,111490.0,0.51333924]
[1756239874470,4.744e-05,111500.0,111490.0,1.00618271]
[1756239875228,4.744e-05,111500.0,111490.0,1.00610271]
[1756239875452,4.744e-05,111500.0,111490.0,0.51325924]
[1756239876438,4.744e-05,111500.0,111490.0,1.00610271]
[1756239878914,4.744e-05,111500.0,111490.0,0.35933924]
[1756239879119,4.744e-05,111500.0,111490.0,0.51325924]
[1756239879975,4.744e-05,111500.0,111490.0,1.00610271]
[1756239880193,4.744e-05,111500.0,111490.0,0.51325924]
[1756239881031,4.744e-05,111500.0,111490.0,0.440252]
[1756239882969,4.744e-05,111500.0,111490.0,0.93309547]
[1756239883196,4.744e-05,111500.0,111490.0,0.440252]
[1756239883408,4.744e-05,111500.0,111490.0,0.93309547]
[1756239883750,4.744e-05,111500.0,111490.0,0.21368728]
[1756239883956,4.744e-05,111500.0,111490.0,0.36756728]
[1756239884153,4.744e-05,111500.0,111490.0,0.86041075]
[1756239885463,4.744e-05,111500.0,111490.0,1.20041075]
[1756239886097,4.744e-05,111500.0,111490.0,0.70756728]
[1756239886309,4.744e-05,111500.0,111490.0,1.19941075]
[1756239886514,4.744e-05,111500.0,111490.0,1.20041075]
[1756239886715,4.744e-05,111500.0,111490.0,1.20341075]
[1756239886924,4.744e-05,111500.0,111490.0,1.36750076]
[1756239887135,4.744e-05,111500.0,111490.0,1.45896278]
[1756239888522,4.744e-05,111500.0,111490.0,1.45696278]
[1756239888961,4.744e-05,111500.0,111490.0,1.45796278]
[1756239889168,4.744e-05,111500.0,111490.0,1.46296278]
[1756239892525,4.744e-05,111500.0,111490.0,0.97011931]
[1756239892724,4.744e-05,111500.0,111490.0,1.46296278]
[1756239901002,4.744e-05,111500.0,111490.0,0.89739459]
[1756239901217,4.744e-05,111500.0,111490.0,1.39023806]
[1756239901861,4.744e-05,111500.0,111490.0,1.48490806]
[1756239902070,4.744e-05,111500.0,111490.0,1.39023806]
[1756239907364,4.744e-05,111500.0,111490.0,1.63549419]
[1756239909120,0.01846987,111550.0,111540.0,0.17930787]
[1756239909445,0.20999524,111550.0,111540.0,0.33296791]
[1756239909667,0.03070345,111550.0,111540.0,0.33296791]
[1756239910467,0.01244368,111550.0,111540.0,0.33296791]
[1756239910884,0.01244368,111550.0,111540.0,0.35993791]
[1756239911050,0.02647688,111550.0,111540.0,0.35993791]
[1756239912100,0.0264781,111550.0,111540.0,0.35993791]
[1756239914807,0.0264781,111550.0,111540.0,0.40010029]
[1756239915027,0.0124449,111550.0,111540.0,0.40010029]
[1756239915439,0.19173669,111550.0,111540.0,0.40010029]
[1756239916286,0.19173669,111550.0,111540.0,0.24634029]
[1756239916518,0.19173669,111550.0,111540.0,0.40010029]
[1756239916736,0.0124449,111550.0,111540.0,0.40010029]
[1756239918699,0.19173669,111550.0,111540.0,0.40010029]
[1756239919958,0.1634308,111560.0,111540.0,0.40010029]
[1756239920165,0.17929179,111550.0,111540.0,0.40010029]
[1756239920373,0.16390556,111560.0,111540.0,0.47220173]
[1756239921065,0.16390556,111560.0,111540.0,0.40010029]
[1756239921506,0.16390556,111560.0,111550.0,0.00224114]
[1756239923932,0.17929179,111550.0,111540.0,0.40010029]
[1756239924138,0.16390556,111560.0,111540.0,0.40308029]
[1756239924347,0.16390556,111560.0,111550.0,0.00224114]
[1756239927399,0.16390556,111560.0,111550.0,0.18153293]
[1756239928105,0.16390556,111560.0,111550.0,0.00224114]
[1756239929135,0.16390556,111560.0,111550.0,0.18153293]
[1756239929326,0.16390556,111560.0,111550.0,0.18451293]
[1756239929540,0.16390556,111560.0,111550.0,0.18227179]
[1756239929696,0.16120556,111560.0,111550.0,0.18227179]
[1756239931067,0.03315238,111560.0,111550.0,0.25491651]
[1756239931263,0.03315238,111560.0,111550.0,0.25701651]
[1756239931450,0.01450754,111560.0,111550.0,0.25701651]
[1756239931833,0.02291339,111560.0,111550.0,0.28398351]
[1756239932233,0.01450754,111560.0,111550.0,0.28398351]
[1756239932434,0.02291413,111560.0,111550.0,0.3754288]
[1756239932634,0.00888135,111560.0,111550.0,0.3754288]
[1756239932846,0.0088809,111560.0,111550.0,0.28398351]
[1756239935989,0.02291303,111560.0,111550.0,0.28398351]
[1756239936175,0.0088809,111560.0,111550.0,0.28398351]
[1756239936828,0.0088809,111560.0,111550.0,0.65287078]
[1756239937051,0.00047476,111560.0,111550.0,0.28398351]
[1756239937276,0.00047476,111560.0,111550.0,0.69769232]
[1756239937629,0.00047476,111560.0,111550.0,0.85129232]
[1756239939053,0.00047476,111560.0,111550.0,0.69769232]
[1756239939247,0.00047476,111560.0,111550.0,0.85129232]
[1756239939852,0.00047476,111560.0,111550.0,0.48240505]
[1756239940214,0.00047476,111560.0,111550.0,0.85129232]
[1756239940616,0.00047476,111560.0,111550.0,0.69969232]
[1756239940816,0.00047476,111560.0,111550.0,0.85329232]
[1756239941365,0.05295353,111570.0,111560.0,0.17927572]
[1756239941615,0.05295353,111570.0,111560.0,0.34192195]
[1756239941795,0.05295353,111570.0,111560.0,0.34474101]
[1756239942593,0.05295353,111570.0,111560.0,0.52526301]
[1756239945095,0.05295353,111570.0,111560.0,0.89415028]
[1756239945340,0.05295353,111570.0,111560.0,0.52526301]
[1756239945510,0.05295353,111570.0,111560.0,0.37170301]
[1756239945693,0.05295353,111570.0,111560.0,0.52526301]
[1756239947174,0.05295353,111570.0,111560.0,0.37170301]
[1756239947323,0.05295353,111570.0,111560.0,0.52526301]
[1756239947651,0.05295353,111570.0,111560.0,0.52522301]
[1756239947856,0.05295353,111570.0,111560.0,0.37170301]
[1756239948074,0.05295353,111570.0,111560.0,0.52522301]
[1756239948262,0.05295353,111570.0,111560.0,0.37170301]
[1756239948523,0.05295353,111570.0,111560.0,0.52522301]
[1756239948737,0.05295353,111570.0,111560.0,0.37170301]
[1756239949141,0.05295353,111570.0,111560.0,0.52522301]
[1756239953438,0.05295353,111570.0,111560.0,0.89411028]
[1756239954731,0.05295353,111570.0,111560.0,1.26299755]
[1756239955971,0.05295353,111570.0,111560.0,1.26499755]
[1756239956153,0.05295353,111570.0,111560.0,1.28044416]
[1756239956532,0.05295353,111570.0,111560.0,1.28244416]
[1756239957164,0.05295353,111570.0,111560.0,0.91255689]
[1756239957694,0.05295353,111570.0,111560.0,0.91455689]
[1756239958020,0.05295353,111570.0,111560.0,0.89811028]
[1756239958226,0.05295353,111570.0,111560.0,0.89807028]
[1756239960399,0.05295353,111570.0,111560.0,0.52918301]
[1756239960839,0.05295353,111570.0,111560.0,0.89807028]
[1756239961444,0.05295353,111570.0,111560.0,0.52918301]
[1756239961648,0.05295353,111570.0,111560.0,0.89807028]
[1756239962270,0.05295353,111570.0,111560.0,0.37570301]
[1756239962591,0.05295353,111570.0,111560.0,0.89807028]
[1756239963887,0.05205353,111570.0,111560.0,0.52918301]
[1756239964193,0.05205353,111570.0,111560.0,0.89807028]
[1756239966180,0.05205353,111570.0,111560.0,0.52918301]
[1756239966378,0.05205353,111570.0,111560.0,0.89807028]
[1756239967936,0.05205353,111570.0,111560.0,0.74459028]
[1756239968141,0.05205353,111570.0,111560.0,0.89803028]
[1756239968839,0.05205353,111570.0,111560.0,0.52914301]
[1756239969043,0.05205353,111570.0,111560.0,0.89803028]
[1756239969279,0.05205353,111570.0,111560.0,0.52914301]
[1756239969480,0.05205353,111570.0,111560.0,0.89803028]
[1756239975087,0.05541838,111590.0,111580.0,0.17924359]
[1756239975419,0.06397207,111590.0,111580.0,0.35056795]
[1756239975649,0.0639721,111590.0,111580.0,0.35056795]
[1756239975840,0.08029591,111590.0,111580.0,0.33264359]
[1756239976255,0.02487753,111590.0,111580.0,0.33264359]
[1756239976616,0.02487753,111590.0,111580.0,0.33572359]
[1756239977416,0.02487753,111590.0,111580.0,0.33779359]
[1756239977624,0.02487753,111590.0,111580.0,0.38088417]
[1756239978023,0.02487753,111590.0,111580.0,0.74977144]
[1756239978429,0.02487753,111590.0,111580.0,0.38088417]
[1756239978678,0.02487753,111590.0,111580.0,0.40784317]
[1756239978873,0.02487741,111590.0,111580.0,0.40784317]
[1756239979075,0.0085536,111590.0,111580.0,0.77673044]
[1756239979233,0.0085536,111590.0,111580.0,1.14561771]
[1756239979471,0.00014234,111590.0,111580.0,1.14561771]
[1756239979637,0.00014234,111590.0,111580.0,0.74784317]
[1756239979877,0.00014234,111590.0,111580.0,1.48561771]
[1756239980224,0.00014234,111590.0,111580.0,1.52500642]
[1756239980541,0.00014234,111590.0,111580.0,1.52696642]
[1756239980744,0.00014234,111590.0,111580.0,1.37360642]
[1756239981387,0.00014234,111590.0,111580.0,1.52696642]
[1756239981809,0.00014234,111590.0,111580.0,1.52896642]
[1756239982224,0.00014234,111590.0,111580.0,0.79119188]
[1756239982352,0.00014234,111590.0,111580.0,1.52896642]
[1756239982968,0.00014234,111590.0,111580.0,0.79119188]
[1756239983178,0.00014234,111590.0,111580.0,1.52896642]
[1756239983590,0.00014234,111590.0,111580.0,0.79119188]
[1756239983794,0.00014234,111590.0,111580.0,1.52896642]
[1756239985543,0.00014234,111590.0,111580.0,1.37560642]
[1756239985946,0.00014234,111590.0,111580.0,1.52896642]
[1756239986147,0.00014234,111590.0,111580.0,1.52892642]
[1756239987857,0.00014234,111590.0,111580.0,0.63783188]
[1756239988016,0.00014234,111590.0,111580.0,0.75176317]
[1756239988402,0.00014234,111590.0,111580.0,1.48953771]
[1756239991026,0.00014234,111590.0,111580.0,0.75176317]
[1756239991232,0.00014234,111590.0,111580.0,1.48953771]
[1756239993057,0.00014234,111590.0,111580.0,0.75176317]
[1756239993273,0.00014234,111590.0,111580.0,1.48953771]
[1756239994086,0.00014234,111590.0,111580.0,0.75176317]
[1756239994281,0.00014234,111590.0,111580.0,1.48949771]
[1756239995743,0.00014234,111590.0,111580.0,0.75172317]
[1756239995952,0.00014234,111590.0,111580.0,0.59844317]
[1756239996166,0.00014234,111590.0,111580.0,0.75172317]
[1756239996361,0.00014234,111590.0,111580.0,1.12061044]
[1756239997011,0.00014234,111590.0,111580.0,0.75172317]
[1756239997220,0.00014234,111590.0,111580.0,1.12061044]
[1756239997539,0.00014234,111590.0,111580.0,1.2432185]
[1756239997768,0.00014234,111590.0,111580.0,0.55328259]
[1756239997975,0.00014234,111590.0,111580.0,0.70656259]
[1756239998593,0.00014234,111590.0,111580.0,0.70860259]
[1756239998793,0.00014234,111590.0,111580.0,1.20009792]
[1756240000038,0.00014234,111590.0,111580.0,0.70860259]
[1756240000242,0.00014234,111590.0,111580.0,1.26632093]
[1756240000865,0.00014234,111590.0,111580.0,1.30752299]
[1756240002546,0.00014234,111590.0,111580.0,0.96752299]
[1756240002758,0.00014234,111590.0,111580.0,1.30752299]
[1756240003520,0.00014234,111590.0,111580.0,0.96752299]
[1756240003920,0.00014234,111590.0,111580.0,0.40980465]
[1756240004888,0.00014234,111590.0,111580.0,0.74980465]
[1756240006026,0.00014234,111590.0,111580.0,0.40980465]
[1756240006255,0.00014234,111590.0,111580.0,1.08801998]
[1756240006435,0.00014234,111590.0,111580.0,1.24125998]
[1756240007491,0.21849153,111620.0,111600.0,0.17921146]
[1756240007699,0.22689577,111620.0,111600.0,0.1814516]
[1756240007898,0.17919541,111610.0,111600.0,0.1814516]
[1756240008103,0.00840424,111610.0,111600.0,0.1814516]
[1756240008691,0.00840424,111610.0,111600.0,0.3346916]
[1756240008892,0.00840424,111610.0,111600.0,0.17921146]
[1756240009125,0.00840424,111610.0,111600.0,0.1814516]
[1756240009805,0.00840424,111610.0,111600.0,0.1944742]
[1756240010060,0.00840424,111610.0,111600.0,0.17921146]
[1756240010261,0.00840424,111610.0,111600.0,0.20616446]
[1756240010465,0.18759965,111610.0,111600.0,0.20616446]
[1756240010672,0.18759965,111610.0,111600.0,0.35940446]
[1756240012673,0.00840424,111610.0,111600.0,0.35940446]
[1756240012861,0.18759965,111610.0,111600.0,0.35940446]
[1756240015558,0.18760705,111610.0,111600.0,0.35940446]
[1756240016213,0.18760721,111610.0,111600.0,0.35940446]
[1756240016549,0.18760721,111610.0,111600.0,0.33245146]
[1756240019326,0.18760721,111610.0,111600.0,0.33241146]
[1756240020316,0.18760721,111610.0,111600.0,0.1532]
[1756240020537,0.17921146,111600.0,111590.0,0.34773169]
[1756240020741,0.17919541,111610.0,111590.0,0.50093169]
[1756240020944,0.17921146,111600.0,111590.0,0.34773169]
[1756240021148,0.17921146,111600.0,111590.0,0.50094624]
[1756240021360,0.17921146,111600.0,111590.0,0.34774624]
[1756240021522,0.17921146,111600.0,111590.0,0.50094624]
[1756240021725,0.1876243,111600.0,111590.0,0.16951872]
[1756240022104,0.00841284,111600.0,111590.0,0.58784412]
[1756240023107,0.00841284,111600.0,111590.0,0.58884412]
[1756240023743,0.00841284,111600.0,111590.0,0.50294624]
[1756240024508,0.00841241,111600.0,111590.0,0.50294624]
[1756240025053,0.17789541,111610.0,111590.0,0.50294624]
[1756240025279,0.18630758,111610.0,111590.0,0.50294624]
[1756240026214,0.18630758,111610.0,111590.0,0.50194624]
[1756240026590,0.18630758,111610.0,111590.0,0.50094624]
[1756240028114,0.18630758,111610.0,111600.0,0.00224014]
[1756240028320,0.52630758,111610.0,111600.0,0.00224014]
[1756240029832,0.52630758,111610.0,111600.0,0.1814516]
[1756240030423,0.52630758,111610.0,111600.0,0.33241146]
[1756240031207,0.52630758,111610.0,111600.0,0.1532]
[1756240031796,0.52630758,111610.0,111600.0,0.15316]
[1756240032005,0.17923714,111590.0,111580.0,0.17924359]
[1756240032214,0.17923714,111590.0,111570.0,0.35674635]
[1756240032437,0.17923714,111590.0,111570.0,0.34778337]
[1756240032634,0.18764761,111590.0,111580.0,0.33240359]
[1756240033059,0.18764761,111590.0,111580.0,0.35936359]
[1756240033292,0.18764761,111590.0,111580.0,0.36136359]
[1756240033500,0.17923714,111590.0,111580.0,0.02896]
[1756240033683,0.17923714,111590.0,111580.0,0.18012]
[1756240034032,0.17923714,111590.0,111580.0,0.35936359]
[1756240034474,0.17923714,111590.0,111580.0,0.20620359]
[1756240034701,0.17923714,111590.0,111580.0,0.35936359]
[1756240036780,0.17923714,111590.0,111580.0,0.18012]
[1756240038035,0.17923714,111590.0,111580.0,0.35936359]
[1756240039730,0.17923714,111590.0,111580.0,0.39881692]
[1756240040529,0.17923714,111590.0,111580.0,0.37185692]
[1756240041195,0.17923714,111590.0,111580.0,0.03945333]
[1756240041398,0.17923714,111590.0,111580.0,0.37185692]
[1756240041677,0.17923714,111590.0,111580.0,0.33240359]
[1756240042042,0.17923714,111590.0,111580.0,0.35936359]
[1756240044598,0.17923714,111590.0,111580.0,0.33240359]
[1756240044762,0.17923714,111590.0,111580.0,0.40000732]
[1756240045265,0.17923714,111590.0,111580.0,0.37304832]
[1756240045451,0.17923714,111590.0,111580.0,0.40000832]
[1756240047285,0.17923714,111590.0,111580.0,0.24684832]
[1756240047493,0.17923714,111590.0,111580.0,0.39996832]
[1756240048063,0.17923714,111590.0,111580.0,0.19376473]
[1756240048857,0.17923714,111590.0,111580.0,0.37300832]
[1756240049644,0.17923714,111590.0,111580.0,0.21988832]
[1756240049841,0.17923714,111590.0,111580.0,0.37300832]
[1756240050042,0.17923714,111590.0,111580.0,0.19376473]
[1756240050279,0.17924359,111580.0,111570.0,0.16852472]
[1756240050487,0.17924359,111580.0,111570.0,0.47394437]
[1756240050689,0.17924359,111580.0,111570.0,0.32082437]
[1756240050898,0.17924359,111580.0,111570.0,0.47394437]
[1756240051068,0.17924359,111580.0,111570.0,0.32082437]
[1756240051473,0.17924359,111580.0,111570.0,0.32182437]
[1756240051659,0.20945239,111580.0,111570.0,0.32182437]
[1756240051861,0.20945239,111580.0,111570.0,0.32282437]
[1756240052057,0.20945239,111580.0,111570.0,0.47594437]
[1756240052462,0.20945239,111580.0,111570.0,0.32282437]
[1756240052688,0.51923714,111590.0,111570.0,0.47594437]
[1756240052885,0.52764147,111590.0,111570.0,0.47594437]
[1756240053725,0.52764147,111590.0,111570.0,0.47494437]
[1756240053874,0.34840433,111590.0,111580.0,0.17924359]
[1756240054088,0.52763185,111590.0,111580.0,0.17924359]
[1756240054929,0.55775372,111590.0,111580.0,0.17924359]
[1756240055951,0.55775372,111590.0,111580.0,0.00224054]
[1756240056294,0.55775372,111590.0,111580.0,0.18148413]
[1756240057269,0.55775372,111590.0,111580.0,0.00224054]
[1756240057475,0.55775372,111590.0,111580.0,0.18148413]
[1756240058415,0.55775532,111590.0,111580.0,0.18148413]
[1756240058819,0.55775532,111590.0,111580.0,0.00224054]
[1756240059033,0.55775532,111590.0,111580.0,0.18148413]
[1756240060207,0.55775532,111590.0,111580.0,0.00224054]
[1756240060974,0.55775532,111590.0,111580.0,0.18148413]
[1756240061176,0.55595532,111590.0,111580.0,0.18148413]
[1756240063716,0.00840579,111590.0,111580.0,0.91869809]
[1756240063927,0.23559424,111620.0,111600.0,0.17921146]
[1756240063928,0.18816365,111620.0,111600.0,0.17921146]
[1756240064134,0.19657365,111620.0,111610.0,0.15308]
[1756240064337,0.17919541,111610.0,111590.0,0.25185788]
[1756240064536,0.00841,111610.0,111600.0,0.33229146]
[1756240065152,0.00840642,111610.0,111600.0,0.33229146]
[1756240065423,0.21771255,111620.0,111600.0,0.33229146]
[1756240065629,0.56611638,111620.0,111600.0,0.33229146]
[1756240067158,0.17919541,111610.0,111600.0,0.33229146]
[1756240069243,0.57173806,111620.0,111610.0,0.17919541]
[1756240069437,0.58013666,111620.0,111600.0,0.40121146]
[1756240070358,0.58013666,111620.0,111600.0,0.40647146]
[1756240070561,0.58013666,111620.0,111610.0,0.00313]
[1756240074270,0.58013666,111620.0,111610.0,0.00526]
[1756240075249,0.57173806,111620.0,111610.0,0.00526]
[1756240075460,0.58013089,111620.0,111610.0,0.00526]
[1756240075763,0.39196665,111620.0,111610.0,0.18445541]
[1756240075896,0.571146,111620.0,111610.0,0.18445541]
[1756240076097,0.56275376,111620.0,111610.0,0.18445541]
[1756240077168,0.38357441,111620.0,111610.0,0.18445541]
[1756240077551,0.38357441,111620.0,111610.0,0.25710013]
[1756240077926,0.38357441,111620.0,111610.0,0.34854542]
[1756240078140,0.38357441,111620.0,111610.0,0.25710013]
[1756240080625,0.3695489,111620.0,111610.0,0.25710013]
[1756240082347,0.3695489,111620.0,111610.0,0.41010013]
[1756240082756,0.54872825,111620.0,111610.0,0.25710013]
[1756240082956,0.3695489,111620.0,111610.0,0.41010013]
[1756240083585,0.19808361,111630.0,111610.0,0.41010013]
[1756240083766,0.20661426,111630.0,111620.0,0.00313]
[1756240085125,0.20661426,111630.0,111620.0,0.15613]
[1756240085555,0.58353246,111630.0,111620.0,0.15613]
[1756240085790,0.58353246,111630.0,111620.0,0.00313]
[1756240086011,0.58353246,111630.0,111620.0,0.15613]
[1756240086729,0.58083246,111630.0,111620.0,0.15613]
[1756240087095,0.17917935,111620.0,111610.0,0.07264472]
[1756240087344,0.17917935,111620.0,111610.0,0.22868472]
[1756240087563,0.17917935,111620.0,111610.0,0.40992013]
[1756240089031,0.17917935,111620.0,111610.0,0.23072472]
[1756240089600,0.17917935,111620.0,111610.0,0.07772472]
[1756240089799,0.17917935,111620.0,111610.0,0.22868472]
[1756240089956,0.17917935,111620.0,111610.0,0.23072472]
[1756240093456,0.18758673,111620.0,111610.0,0.23072472]
[1756240093873,0.18758673,111620.0,111610.0,0.15808]
[1756240094458,0.18758688,111620.0,111610.0,0.15808]
[1756240098005,0.18758768,111620.0,111610.0,0.15808]
[1756240098644,0.18758768,111620.0,111610.0,0.33727541]
[1756240099837,0.18758768,111620.0,111610.0,0.15808]
[1756240101382,0.18758863,111620.0,111610.0,0.15808]
[1756240101603,0.18758863,111620.0,111610.0,0.33727541]
[1756240102871,0.18758863,111620.0,111610.0,0.40265006]
[1756240103073,0.00840928,111620.0,111610.0,0.24965006]
[1756240103304,0.00840928,111620.0,111610.0,0.40261006]
[1756240103505,0.00840928,111620.0,111610.0,0.33723541]
[1756240104022,0.18758863,111620.0,111610.0,0.33723541]
[1756240104627,0.00841168,111620.0,111610.0,0.33723541]
[1756240105075,0.57025131,111630.0,111620.0,0.17917935]
[1756240105232,0.57866246,111630.0,111620.0,0.18425935]
[1756240105540,0.05949684,111630.0,111620.0,0.2431653]
[1756240105796,0.385472,111630.0,111620.0,0.18425935]
[1756240105980,0.2246353,111630.0,111620.0,0.18425935]
[1756240109837,0.045472,111630.0,111620.0,0.18425935]
[1756240110062,0.2246353,111630.0,111620.0,0.18425935]
[1756240110822,0.045472,111630.0,111620.0,0.18425935]
[1756240111422,0.2246353,111630.0,111620.0,0.18425935]
[1756240111860,0.045472,111630.0,111620.0,0.18425935]
[1756240112037,0.2246353,111630.0,111620.0,0.18425935]
[1756240113335,0.03706085,111630.0,111620.0,0.18425935]
[1756240114266,0.21622415,111630.0,111620.0,0.18425935]
[1756240114878,0.21622415,111630.0,111620.0,0.33513935]
[1756240116369,0.21622415,111630.0,111620.0,0.33717935]
[1756240116942,0.21622415,111630.0,111620.0,0.18425935]
[1756240117149,0.21622415,111630.0,111620.0,0.33717935]
[1756240117376,0.21622415,111630.0,111620.0,0.18425935]
[1756240117503,0.21622415,111630.0,111620.0,0.33717935]
[1756240119493,0.21622415,111630.0,111620.0,0.18425935]
[1756240119632,0.21622415,111630.0,111620.0,0.33713935]
[1756240119836,0.22462631,111630.0,111620.0,0.33713935]
[1756240120251,0.22462631,111630.0,111620.0,0.18425935]
[1756240120454,0.22462631,111630.0,111620.0,0.33713935]
[1756240122541,0.22462631,111630.0,111620.0,0.18425935]
[1756240122723,0.22462631,111630.0,111620.0,0.33713935]
[1756240123659,0.56462631,111630.0,111620.0,0.00304]
[1756240123866,0.56462631,111630.0,111620.0,0.15592]
[1756240124418,0.56462631,111630.0,111620.0,0.15788]
[1756240125032,0.56462755,111630.0,111620.0,0.15788]
[1756240126931,0.56462755,111630.0,111620.0,0.15592]
[1756240127374,0.56462755,111630.0,111620.0,0.15788]
[1756240128959,0.56462755,111630.0,111620.0,0.00304]
[1756240129161,0.56462755,111630.0,111620.0,0.15788]
[1756240130241,0.56462755,111630.0,111620.0,0.005]
[1756240130388,0.17917935,111620.0,111610.0,0.25479059]
[1756240130590,0.17917935,111620.0,111610.0,0.40763059]
[1756240130846,0.17917935,111620.0,111610.0,0.40959059]
[1756240131228,0.1875862,111620.0,111610.0,0.1558]
[1756240132224,0.1867862,111620.0,111610.0,0.1558]
[1756240132889,0.20081105,111620.0,111610.0,0.1558]
[1756240133312,0.54081105,111620.0,111610.0,0.00296]
[1756240133459,0.17919541,111610.0,111600.0,0.00296]